[Event "Titled Tuesday Blitz August 16 Late 2022"]
[White "Martinez Reyes, Pedro Ramon"]
[Black "Sokolovsky, Yahli"]
[WhiteFideId "3901807"]
[BlackFideId "2820242"]
[WhiteElo "2327"]
[BlackElo "1867"]
[Result "0-1"]
[Round "08"]
[TimeControl "180+1"]
[Date "2022.08.18"]
[WhiteClock "0:00:00"]
[BlackClock "0:00:00"]

1. e4 {[%clk 0:00:00]}  g6 {[%clk 0:00:00]} 2. d4 {[%clk 0:00:00]}  Bg7 {[%clk 0:00:00]} 3. Nc3 {[%clk 0:00:00]}  d6 {[%clk 0:00:00]} 4. Nf3 {[%clk 0:00:00]}  a6 {[%clk 0:00:00]} 5. a4 {[%clk 0:00:00]}  b6 {[%clk 0:00:00]} 6. h3 {[%clk 0:00:00]}  Bb7 {[%clk 0:00:00]} 7. Bd3 {[%clk 0:00:00]}  Nd7 {[%clk 0:00:00]} 8. O-O {[%clk 0:00:00]}  c5 {[%clk 0:00:00]} 9. d5 {[%clk 0:00:00]}  Ngf6 {[%clk 0:00:00]} 10. Re1 {[%clk 0:00:00]}  O-O {[%clk 0:00:00]} 11. Bf4 {[%clk 0:00:00]}  Qc7 {[%clk 0:00:00]} 12. e5 {[%clk 0:00:00]}  dxe5 {[%clk 0:00:00]} 13. Nxe5 {[%clk 0:00:00]}  Nxe5 {[%clk 0:00:00]} 14. Bxe5 {[%clk 0:00:00]}  Qd7 {[%clk 0:00:00]} 15. Bc4 {[%clk 0:00:00]}  Rad8 {[%clk 0:00:00]} 16. Qe2 {[%clk 0:00:00]}  Nxd5 {[%clk 0:00:00]} 17. Bxg7 {[%clk 0:00:00]}  Kxg7 {[%clk 0:00:00]} 18. Rad1 {[%clk 0:00:00]}  e6 {[%clk 0:00:00]} 19. Nxd5 {[%clk 0:00:00]}  Bxd5 {[%clk 0:00:00]} 20. Bxd5 {[%clk 0:00:00]}  exd5 {[%clk 0:00:00]} 21. Qxa6 {[%clk 0:00:00]}  Qc7 {[%clk 0:00:00]} 22. c3 {[%clk 0:00:00]}  Rfe8 {[%clk 0:00:00]} 23. Qb5 {[%clk 0:00:00]}  Rxe1+ {[%clk 0:00:00]} 24. Rxe1 {[%clk 0:00:00]}  d4 {[%clk 0:00:00]} 25. cxd4 {[%clk 0:00:00]}  cxd4 {[%clk 0:00:00]} 26. Qd3 {[%clk 0:00:00]}  Qc5 {[%clk 0:00:00]} 27. b3 {[%clk 0:00:00]}  Rd6 {[%clk 0:00:00]} 28. g3 {[%clk 0:00:00]}  Rf6 {[%clk 0:00:00]} 29. Kg2 {[%clk 0:00:00]}  Qd5+ {[%clk 0:00:00]} 30. f3 {[%clk 0:00:00]}  Rc6 {[%clk 0:00:00]} 31. Re4 {[%clk 0:00:00]}  Rd6 {[%clk 0:00:00]} 32. h4 {[%clk 0:00:00]}  Qc5 {[%clk 0:00:00]} 33. Re2 {[%clk 0:00:00]}  h5 {[%clk 0:00:00]} 34. Rd2 {[%clk 0:00:00]}  Qe5 {[%clk 0:00:00]} 35. Re2 {[%clk 0:00:00]}  Qd5 {[%clk 0:00:00]} 36. Rd2 {[%clk 0:00:00]}  Rf6 {[%clk 0:00:00]} 37. b4 {[%clk 0:00:00]}  Rd6 {[%clk 0:00:00]} 38. b5 {[%clk 0:00:00]}  Qa8 {[%clk 0:00:00]} 39. Qc4 {[%clk 0:00:00]}  Qd8 {[%clk 0:00:00]} 40. Rd3 {[%clk 0:00:00]}  Qf6 {[%clk 0:00:00]} 41. Qb4 {[%clk 0:00:00]}  Qe5 {[%clk 0:00:00]} 42. Qd2 {[%clk 0:00:00]}  Qc5 {[%clk 0:00:00]} 43. Kf2 {[%clk 0:00:00]}  Re6 {[%clk 0:00:00]} 44. Rxd4 {[%clk 0:00:00]}  Rd6 {[%clk 0:00:00]} 45. Ke3 {[%clk 0:00:00]}  Qe5+ {[%clk 0:00:00]} 46. Re4 {[%clk 0:00:00]}  Qxg3 {[%clk 0:00:00]} 47. Qc3+ {[%clk 0:00:00]}  Kh7 {[%clk 0:00:00]} 48. Qe5 {[%clk 0:00:00]}  Qe1+ {[%clk 0:00:00]} 49. Kf4 {[%clk 0:00:00]}  Qd2+ {[%clk 0:00:00]} 50. Kg3 {[%clk 0:00:00]}  Re6 {[%clk 0:00:00]} 51. Qf4 {[%clk 0:00:00]}  Qxf4+ {[%clk 0:00:00]} 52. Kxf4 {[%clk 0:00:00]}  Rf6+ {[%clk 0:00:00]} 53. Kg3 {[%clk 0:00:00]}  Rd6 {[%clk 0:00:00]} 54. Rc4 {[%clk 0:00:00]}  Kg7 {[%clk 0:00:00]} 55. Rc6 {[%clk 0:00:00]}  Rd4 {[%clk 0:00:00]} 56. Rxb6 {[%clk 0:00:00]}  Rxa4 {[%clk 0:00:00]} 57. Rb8 {[%clk 0:00:00]}  Rb4 {[%clk 0:00:00]} 58. b6 {[%clk 0:00:00]}  f6 {[%clk 0:00:00]} 59. f4 {[%clk 0:00:00]}  Rb3+ {[%clk 0:00:00]} 60. Kf2 {[%clk 0:00:00]}  Kf7 {[%clk 0:00:00]} 61. Ke2 {[%clk 0:00:00]}  Ke6 {[%clk 0:00:00]} 62. b7 {[%clk 0:00:00]}  Kf5 {[%clk 0:00:00]} 63. Kd2 {[%clk 0:00:00]}  Kxf4 {[%clk 0:00:00]} 64. Kc2 {[%clk 0:00:00]}  Rb6 {[%clk 0:00:00]} 65. Kc3 {[%clk 0:00:00]}  Kg4 {[%clk 0:00:00]} 66. Kc4 {[%clk 0:00:00]}  Kxh4 {[%clk 0:00:00]} 67. Kc5 {[%clk 0:00:00]}  Rb1 {[%clk 0:00:00]} 68. Kc6 {[%clk 0:00:00]}  g5 {[%clk 0:00:00]} 69. Rf8 {[%clk 0:00:00]}  Rc1+ {[%clk 0:00:00]} 70. Kd5 {[%clk 0:00:00]}  Rb1 {[%clk 0:00:00]} 71. b8=Q {[%clk 0:00:00]}  Rxb8 {[%clk 0:00:00]} 72. Rxb8 {[%clk 0:00:00]}  Kg3 {[%clk 0:00:00]} 73. Ke4 {[%clk 0:00:00]}  h4 {[%clk 0:00:00]} 74. Rb3+ {[%clk 0:00:00]}  Kg4 {[%clk 0:00:00]} 75. Ke3 {[%clk 0:00:00]}  Kg3 {[%clk 0:00:00]} 76. Ke2+ {[%clk 0:00:00]}  Kg2 {[%clk 0:00:00]} 77. Rb4 {[%clk 0:00:00]}  f5 {[%clk 0:00:00]} 78. Rb5 {[%clk 0:00:00]}  g4 {[%clk 0:00:00]} 79. Rxf5 {[%clk 0:00:00]}  h3 {[%clk 0:00:00]} 80. Rg5 {[%clk 0:00:00]}  g3 {[%clk 0:00:00]} 81. Ke3 {[%clk 0:00:00]}  h2 {[%clk 0:00:00]} 82. Kf4 {[%clk 0:00:00]}  h1=Q {[%clk 0:00:00]} 83. Rxg3+ {[%clk 0:00:00]}  Kf1 {[%clk 0:00:00]} 84. Rg4 {[%clk 0:00:00]}  Ke2 {[%clk 0:00:00]} 85. Kg5 {[%clk 0:00:00]}  Qd5+ {[%clk 0:00:00]} 86. Kh4 {[%clk 0:00:00]}  Kf3 {[%clk 0:00:00]} 87. Rg3+ {[%clk 0:00:00]}  Kf2 {[%clk 0:00:00]} 88. Rg5 {[%clk 0:00:00]}  Qd8 {[%clk 0:00:00]} 89. Kh5 {[%clk 0:00:00]}  Qh8+ {[%clk 0:00:00]} 90. Kg6 {[%clk 0:00:00]}  Qg8+ {[%clk 0:00:00]} 91. Kf6 {[%clk 0:00:00]}  Qf8+ {[%clk 0:00:00]} 92. Kg6 {[%clk 0:00:00]}  Qe7 {[%clk 0:00:00]} 93. Rf5+ {[%clk 0:00:00]}  Ke3 {[%clk 0:00:00]} 94. Rf7 {[%clk 0:00:00]}  Qe8 {[%clk 0:00:00]} 95. Kg7 {[%clk 0:00:00]}  Ke4 {[%clk 0:00:00]} 96. Rf8 {[%clk 0:00:00]}  Qe6 {[%clk 0:00:00]} 97. Rf7 {[%clk 0:00:00]}  Ke5 {[%clk 0:00:00]} 98. Kf8 {[%clk 0:00:00]}  Qh6+ {[%clk 0:00:00]} 99. Kg8 {[%clk 0:00:00]}  Ke6 {[%clk 0:00:00]} 100. Re7+ {[%clk 0:00:00]}  Kd6 {[%clk 0:00:00]} 101. Rf7 {[%clk 0:00:00]}  Qg6+ {[%clk 0:00:00]} 102. Kh8 {[%clk 0:00:00]}  Qh5+ {[%clk 0:00:00]} 103. Kg8 {[%clk 0:00:00]}  Ke6 {[%clk 0:00:00]} 104. Rf2 {[%clk 0:00:00]}  Qg5+ {[%clk 0:00:00]} 105. Kf8 {[%clk 0:00:00]}  Qd8+ {[%clk 0:00:00]} 106. Kg7 {[%clk 0:00:00]}  Qd4+ {[%clk 0:00:00]} 107. Kg8 {[%clk 0:00:00]}  Qxf2 {[%clk 0:00:00]} 0-1


[Site "https://www.chess.com"]

[Event "Titled Tuesday Blitz August 16 Late 2022"]
[White "Mikhailov, Viacheslav"]
[Black "Bodnar, Nikolay"]
[WhiteFideId "4187369"]
[BlackFideId "14106469"]
[WhiteElo "2381"]
[BlackElo "2283"]
[Result "1-0"]
[Round "08"]
[TimeControl "180+1"]
[Date "2022.08.16"]
[WhiteClock "0:00:11"]
[BlackClock "0:00:26"]

1. Nf3 {[%clk 0:02:58]}  d5 {[%clk 0:03:00]} 2. g3 {[%clk 0:02:59]}  Bg4 {[%clk 0:03:00]} 3. Bg2 {[%clk 0:02:59]}  Nd7 {[%clk 0:03:00]} 4. d4 {[%clk 0:02:59]}  c6 {[%clk 0:03:00]} 5. O-O {[%clk 0:03:00]}  Ngf6 {[%clk 0:03:01]} 6. c4 {[%clk 0:03:00]}  e6 {[%clk 0:03:00]} 7. Nc3 {[%clk 0:03:01]}  Be7 {[%clk 0:03:01]} 8. h3 {[%clk 0:03:00]}  Bh5 {[%clk 0:03:00]} 9. Ne5 {[%clk 0:02:57]}  O-O {[%clk 0:03:01]} 10. Bf4 {[%clk 0:02:54]}  a5 {[%clk 0:03:00]} 11. Qb3 {[%clk 0:02:49]}  Qc8 {[%clk 0:02:52]} 12. Rfc1 {[%clk 0:02:48]}  dxc4 {[%clk 0:02:44]} 13. Nxc4 {[%clk 0:02:44]}  Nd5 {[%clk 0:02:38]} 14. Bd6 {[%clk 0:02:33]}  Bxd6 {[%clk 0:02:09]} 15. Nxd6 {[%clk 0:02:34]}  Qc7 {[%clk 0:02:10]} 16. Nxd5 {[%clk 0:02:14]}  exd5 {[%clk 0:02:07]} 17. Qxd5 {[%clk 0:02:05]}  Bxe2 {[%clk 0:02:04]} 18. Nf5 {[%clk 0:01:55]}  Nf6 {[%clk 0:01:55]} 19. Qe5 {[%clk 0:01:48]}  Qxe5 {[%clk 0:01:54]} 20. dxe5 {[%clk 0:01:49]}  Nd7 {[%clk 0:01:54]} 21. f4 {[%clk 0:01:45]}  Rab8 {[%clk 0:01:46]} 22. Rc2 {[%clk 0:01:31]}  Bd3 {[%clk 0:01:45]} 23. Ne7+ {[%clk 0:01:32]}  Kh8 {[%clk 0:01:44]} 24. Rd2 {[%clk 0:01:32]}  Rfe8 {[%clk 0:01:43]} 25. Nxc6 {[%clk 0:01:20]}  bxc6 {[%clk 0:01:44]} 26. Rxd3 {[%clk 0:01:20]}  Nc5 {[%clk 0:01:44]} 27. Rd2 {[%clk 0:01:18]}  Rec8 {[%clk 0:01:42]} 28. Rc1 {[%clk 0:01:17]}  Ne6 {[%clk 0:01:37]} 29. Rxc6 {[%clk 0:01:16]}  Rxc6 {[%clk 0:01:27]} 30. Bxc6 {[%clk 0:01:17]}  g6 {[%clk 0:01:15]} 31. Bd5 {[%clk 0:01:16]}  Rd8 {[%clk 0:01:13]} 32. Rd1 {[%clk 0:01:16]}  h5 {[%clk 0:01:13]} 33. h4 {[%clk 0:01:10]}  Kg7 {[%clk 0:01:11]} 34. Bb3 {[%clk 0:01:05]}  Nd4 {[%clk 0:01:06]} 35. Kf2 {[%clk 0:01:03]}  f6 {[%clk 0:01:06]} 36. Ke3 {[%clk 0:00:30]}  Nf5+ {[%clk 0:01:02]} 37. Kf3 {[%clk 0:00:30]}  Rf8 {[%clk 0:00:59]} 38. Rd7+ {[%clk 0:00:29]}  Kh6 {[%clk 0:00:59]} 39. e6 {[%clk 0:00:29]}  Rc8 {[%clk 0:00:53]} 40. Bd5 {[%clk 0:00:14]}  Rc1 {[%clk 0:00:51]} 41. Be4 {[%clk 0:00:13]}  Rf1+ {[%clk 0:00:51]} 42. Kg2 {[%clk 0:00:11]}  Ne3+ {[%clk 0:00:51]} 43. Kh3 {[%clk 0:00:11]}  f5 {[%clk 0:00:45]} 44. Bb7 {[%clk 0:00:08]}  Ng4 {[%clk 0:00:39]} 45. e7 {[%clk 0:00:08]}  Re1 {[%clk 0:00:39]} 46. Bf3 {[%clk 0:00:06]}  Nf6 {[%clk 0:00:37]} 47. Ra7 {[%clk 0:00:06]}  Ng8 {[%clk 0:00:37]} 48. Rxa5 {[%clk 0:00:05]}  Rxe7 {[%clk 0:00:34]} 49. b4 {[%clk 0:00:04]}  Re3 {[%clk 0:00:32]} 50. Kg2 {[%clk 0:00:04]}  Rc3 {[%clk 0:00:30]} 51. b5 {[%clk 0:00:05]}  Rc2+ {[%clk 0:00:29]} 52. Kf1 {[%clk 0:00:05]}  Ne7 {[%clk 0:00:29]} 53. b6 {[%clk 0:00:04]}  Rb2 {[%clk 0:00:25]} 54. b7 {[%clk 0:00:05]}  Rb1+ {[%clk 0:00:19]} 55. Ke2 {[%clk 0:00:05]}  Rb2+ {[%clk 0:00:19]} 56. Kd1 {[%clk 0:00:05]}  Ng8 {[%clk 0:00:19]} 57. a4 {[%clk 0:00:05]}  Nf6 {[%clk 0:00:19]} 58. Rb5 {[%clk 0:00:06]}  Rxb5 {[%clk 0:00:18]} 59. axb5 {[%clk 0:00:07]}  Nd7 {[%clk 0:00:18]} 60. Kd2 {[%clk 0:00:07]}  Kg7 {[%clk 0:00:19]} 61. Kd3 {[%clk 0:00:08]}  Kf6 {[%clk 0:00:20]} 62. Bd5 {[%clk 0:00:08]}  Ke7 {[%clk 0:00:20]} 63. Kd4 {[%clk 0:00:09]}  Kd6 {[%clk 0:00:20]} 64. Bf7 {[%clk 0:00:09]}  Kc7 {[%clk 0:00:20]} 65. Bxg6 {[%clk 0:00:09]}  Kxb7 {[%clk 0:00:21]} 66. Bxf5 {[%clk 0:00:09]}  Nf6 {[%clk 0:00:22]} 67. Ke5 {[%clk 0:00:09]}  Ne8 {[%clk 0:00:21]} 68. Bg6 {[%clk 0:00:09]}  Nc7 {[%clk 0:00:22]} 69. Bxh5 {[%clk 0:00:08]}  Nxb5 {[%clk 0:00:22]} 70. Bf3+ {[%clk 0:00:08]}  Kc7 {[%clk 0:00:23]} 71. h5 {[%clk 0:00:09]}  Kd8 {[%clk 0:00:23]} 72. h6 {[%clk 0:00:10]}  Nd6 {[%clk 0:00:23]} 73. Kxd6 {[%clk 0:00:10]}  Ke8 {[%clk 0:00:23]} 74. h7 {[%clk 0:00:10]}  Kf7 {[%clk 0:00:24]} 75. h8=Q {[%clk 0:00:10]}  Kg6 {[%clk 0:00:24]} 76. Qh5+ {[%clk 0:00:10]}  Kg7 {[%clk 0:00:24]} 77. Qg5+ {[%clk 0:00:11]}  Kf7 {[%clk 0:00:25]} 78. Bd5+ {[%clk 0:00:11]}  Kf8 {[%clk 0:00:26]} 79. Qg8# {[%clk 0:00:11]} 1-0


[Site "https://www.chess.com"]

[Event "Titled Tuesday Blitz August 16 Late 2022"]
[White "Nozdrachev, Leonid"]
[Black "Bartholomew, John"]
[WhiteFideId "24113433"]
[BlackFideId "2019353"]
[WhiteElo "2100"]
[BlackElo "2701"]
[Result "0-1"]
[Round "08"]
[TimeControl "180+1"]
[Date "2022.08.16"]
[WhiteClock "0:00:01"]
[BlackClock "0:00:05"]

1. e4 {[%clk 0:02:59]}  d5 {[%clk 0:02:58]} 2. exd5 {[%clk 0:02:59]}  Qxd5 {[%clk 0:02:59]} 3. Nc3 {[%clk 0:02:56]}  Qa5 {[%clk 0:02:59]} 4. d4 {[%clk 0:02:56]}  Nf6 {[%clk 0:02:59]} 5. Nf3 {[%clk 0:02:55]}  Bf5 {[%clk 0:02:58]} 6. Bc4 {[%clk 0:02:55]}  e6 {[%clk 0:02:58]} 7. Ne5 {[%clk 0:02:53]}  Nbd7 {[%clk 0:02:47]} 8. Nxd7 {[%clk 0:02:48]}  Nxd7 {[%clk 0:02:46]} 9. O-O {[%clk 0:02:45]}  c6 {[%clk 0:02:38]} 10. g4 {[%clk 0:02:44]}  Bg6 {[%clk 0:02:37]} 11. f4 {[%clk 0:02:44]}  O-O-O {[%clk 0:02:20]} 12. Bd2 {[%clk 0:02:28]}  Qb6 {[%clk 0:02:17]} 13. Ne2 {[%clk 0:02:12]}  Nf6 {[%clk 0:02:06]} 14. Qe1 {[%clk 0:02:03]}  Qc7 {[%clk 0:01:21]} 15. f5 {[%clk 0:01:57]}  exf5 {[%clk 0:01:06]} 16. gxf5 {[%clk 0:01:58]}  Bh5 {[%clk 0:01:05]} 17. c3 {[%clk 0:01:40]}  Bd6 {[%clk 0:01:02]} 18. Ng3 {[%clk 0:01:39]}  Rde8 {[%clk 0:00:59]} 19. Qf2 {[%clk 0:01:31]}  Ne4 {[%clk 0:00:57]} 20. Nxe4 {[%clk 0:01:14]}  Rxe4 {[%clk 0:00:58]} 21. Rae1 {[%clk 0:01:14]}  Rhe8 {[%clk 0:00:51]} 22. Rxe4 {[%clk 0:01:12]}  Rxe4 {[%clk 0:00:52]} 23. Re1 {[%clk 0:01:13]}  Qe7 {[%clk 0:00:43]} 24. f6 {[%clk 0:01:07]}  Rxe1+ {[%clk 0:00:36]} 25. Bxe1 {[%clk 0:01:08]}  gxf6 {[%clk 0:00:32]} 26. Qf5+ {[%clk 0:00:58]}  Kc7 {[%clk 0:00:30]} 27. Bf2 {[%clk 0:00:51]}  Bg6 {[%clk 0:00:28]} 28. Qf3 {[%clk 0:00:50]}  Be4 {[%clk 0:00:26]} 29. Qh3 {[%clk 0:00:47]}  f5 {[%clk 0:00:23]} 30. Qxh7 {[%clk 0:00:42]}  Qg5+ {[%clk 0:00:22]} 31. Kf1 {[%clk 0:00:39]}  Qc1+ {[%clk 0:00:23]} 32. Be1 {[%clk 0:00:37]}  Qf4+ {[%clk 0:00:21]} 33. Bf2 {[%clk 0:00:35]}  Qc1+ {[%clk 0:00:17]} 34. Be1 {[%clk 0:00:35]}  b5 {[%clk 0:00:13]} 35. Be2 {[%clk 0:00:28]}  Qf4+ {[%clk 0:00:11]} 36. Bf2 {[%clk 0:00:28]}  Bd5 {[%clk 0:00:09]} 37. b3 {[%clk 0:00:19]}  Qe4 {[%clk 0:00:08]} 38. Qh3 {[%clk 0:00:10]}  f4 {[%clk 0:00:05]} 39. Qg4 {[%clk 0:00:04]}  Qb1+ {[%clk 0:00:05]} 40. Be1 {[%clk 0:00:03]}  Qxa2 {[%clk 0:00:05]} 41. Bf3 {[%clk 0:00:02]}  Qxb3 {[%clk 0:00:05]} 42. Bxd5 {[%clk 0:00:01]}  Qxd5 {[%clk 0:00:06]} 43. Qg7 {[%clk 0:00:01]}  Kb6 {[%clk 0:00:05]} 44. Qf8 {[%clk 0:00:01]}  Qf3+ {[%clk 0:00:05]} 0-1


[Site "https://www.chess.com"]

[Event "Titled Tuesday Blitz August 16 Late 2022"]
[White "Oparin, Grigoriy"]
[Black "Melikyan, Gnel"]
[WhiteFideId "24125890"]
[BlackFideId "54109990"]
[WhiteElo "2639"]
[BlackElo "1772"]
[Result "1/2-1/2"]
[Round "08"]
[TimeControl "180+1"]
[Date "2022.08.16"]
[WhiteClock "0:00:07"]
[BlackClock "0:00:05"]

1. c4 {[%clk 0:03:00]}  Nf6 {[%clk 0:02:59]} 2. Nc3 {[%clk 0:03:01]}  g6 {[%clk 0:02:59]} 3. e4 {[%clk 0:03:01]}  d6 {[%clk 0:02:59]} 4. d4 {[%clk 0:03:01]}  Bg7 {[%clk 0:02:59]} 5. h4 {[%clk 0:03:01]}  c6 {[%clk 0:02:54]} 6. Be2 {[%clk 0:02:57]}  e5 {[%clk 0:02:53]} 7. dxe5 {[%clk 0:02:54]}  dxe5 {[%clk 0:02:53]} 8. Qxd8+ {[%clk 0:02:55]}  Kxd8 {[%clk 0:02:53]} 9. h5 {[%clk 0:02:55]}  Nxh5 {[%clk 0:02:45]} 10. Bxh5 {[%clk 0:02:54]}  gxh5 {[%clk 0:02:45]} 11. Rxh5 {[%clk 0:02:55]}  Be6 {[%clk 0:02:44]} 12. b3 {[%clk 0:02:53]}  Nd7 {[%clk 0:02:42]} 13. Bh6 {[%clk 0:02:50]}  Bxh6 {[%clk 0:02:41]} 14. Rxh6 {[%clk 0:02:51]}  Ke7 {[%clk 0:02:41]} 15. O-O-O {[%clk 0:02:42]}  Rag8 {[%clk 0:02:40]} 16. g3 {[%clk 0:02:41]}  Rg6 {[%clk 0:02:40]} 17. Rh2 {[%clk 0:02:38]}  h5 {[%clk 0:02:40]} 18. Nf3 {[%clk 0:02:35]}  Bg4 {[%clk 0:02:38]} 19. Rd3 {[%clk 0:02:35]}  Bxf3 {[%clk 0:02:38]} 20. Rxf3 {[%clk 0:02:35]}  Rf6 {[%clk 0:02:33]} 21. Rxf6 {[%clk 0:02:34]}  Nxf6 {[%clk 0:02:33]} 22. f3 {[%clk 0:02:23]}  Rd8 {[%clk 0:02:16]} 23. Kc2 {[%clk 0:02:23]}  Rg8 {[%clk 0:02:15]} 24. Ne2 {[%clk 0:02:23]}  Rg5 {[%clk 0:02:13]} 25. Kd2 {[%clk 0:02:23]}  Rg8 {[%clk 0:02:06]} 26. Rh3 {[%clk 0:02:22]}  Rd8+ {[%clk 0:02:06]} 27. Kc2 {[%clk 0:02:23]}  Rg8 {[%clk 0:02:05]} 28. Nc3 {[%clk 0:02:21]}  Ke6 {[%clk 0:02:04]} 29. Nd1 {[%clk 0:02:21]}  h4 {[%clk 0:01:58]} 30. g4 {[%clk 0:02:14]}  Nh7 {[%clk 0:01:54]} 31. Rxh4 {[%clk 0:02:07]}  Ng5 {[%clk 0:01:55]} 32. Rh6+ {[%clk 0:02:03]}  Rg6 {[%clk 0:01:52]} 33. Rh8 {[%clk 0:02:00]}  Nxf3 {[%clk 0:01:52]} 34. Ne3 {[%clk 0:02:01]}  Kd7 {[%clk 0:01:27]} 35. c5 {[%clk 0:01:59]}  Kc7 {[%clk 0:01:14]} 36. Kd3 {[%clk 0:01:58]}  b6 {[%clk 0:01:13]} 37. b4 {[%clk 0:01:58]}  Kb7 {[%clk 0:01:02]} 38. Re8 {[%clk 0:01:47]}  f6 {[%clk 0:00:53]} 39. cxb6 {[%clk 0:01:36]}  axb6 {[%clk 0:00:53]} 40. a4 {[%clk 0:01:36]}  Rh6 {[%clk 0:00:47]} 41. Re7+ {[%clk 0:01:36]}  Kb8 {[%clk 0:00:47]} 42. Nc4 {[%clk 0:01:30]}  b5 {[%clk 0:00:40]} 43. axb5 {[%clk 0:01:03]}  cxb5 {[%clk 0:00:40]} 44. Na5 {[%clk 0:01:03]}  Nd4 {[%clk 0:00:37]} 45. g5 {[%clk 0:01:03]}  Rh3+ {[%clk 0:00:36]} 46. Kd2 {[%clk 0:01:03]}  Rh2+ {[%clk 0:00:35]} 47. Ke1 {[%clk 0:00:58]}  fxg5 {[%clk 0:00:34]} 48. Kf1 {[%clk 0:00:58]}  g4 {[%clk 0:00:27]} 49. Rg7 {[%clk 0:00:55]}  Rb2 {[%clk 0:00:20]} 50. Rg8+ {[%clk 0:00:46]}  Kc7 {[%clk 0:00:20]} 51. Rg7+ {[%clk 0:00:46]}  Kd8 {[%clk 0:00:20]} 52. Nb7+ {[%clk 0:00:45]}  Ke8 {[%clk 0:00:20]} 53. Nd6+ {[%clk 0:00:42]}  Kf8 {[%clk 0:00:19]} 54. Rxg4 {[%clk 0:00:40]}  Rxb4 {[%clk 0:00:19]} 55. Rg5 {[%clk 0:00:38]}  Rb1+ {[%clk 0:00:19]} 56. Kf2 {[%clk 0:00:38]}  Rb2+ {[%clk 0:00:19]} 57. Kf1 {[%clk 0:00:38]}  Ke7 {[%clk 0:00:18]} 58. Rxe5+ {[%clk 0:00:25]}  Kxd6 {[%clk 0:00:14]} 59. Rd5+ {[%clk 0:00:26]}  Ke6 {[%clk 0:00:14]} 60. Rxd4 {[%clk 0:00:27]}  Ke5 {[%clk 0:00:15]} 61. Rd8 {[%clk 0:00:26]}  Kxe4 {[%clk 0:00:13]} 62. Ke1 {[%clk 0:00:27]}  Rc2 {[%clk 0:00:13]} 63. Kd1 {[%clk 0:00:17]}  Rc4 {[%clk 0:00:13]} 64. Ke2 {[%clk 0:00:16]}  b4 {[%clk 0:00:12]} 65. Kd2 {[%clk 0:00:11]}  Ke5 {[%clk 0:00:09]} 66. Kd3 {[%clk 0:00:06]}  Rc3+ {[%clk 0:00:09]} 67. Kd2 {[%clk 0:00:07]}  Rh3 {[%clk 0:00:05]} 68. Rb8 {[%clk 0:00:05]}  b3 {[%clk 0:00:04]} 69. Kc1 {[%clk 0:00:06]}  Kd4 {[%clk 0:00:04]} 70. Kb2 {[%clk 0:00:06]}  Rd3 {[%clk 0:00:04]} 71. Rb4+ {[%clk 0:00:05]}  Ke3 {[%clk 0:00:05]} 72. Rxb3 {[%clk 0:00:06]}  Rxb3+ {[%clk 0:00:05]} 73. Kxb3 {[%clk 0:00:07]} 1/2-1/2


[Site "https://www.chess.com"]

[Event "Titled Tuesday Blitz August 16 Late 2022"]
[White "Ozalp, Burak"]
[Black "Reprintsev, Alexander"]
[WhiteFideId "6314210"]
[BlackFideId "14100541"]
[WhiteElo "1854"]
[BlackElo "2108"]
[Result "0-1"]
[Round "08"]
[TimeControl "180+1"]
[Date "2022.08.18"]
[WhiteClock "0:00:00"]
[BlackClock "0:00:00"]

1. e4 {[%clk 0:00:00]}  d5 {[%clk 0:00:00]} 2. exd5 {[%clk 0:00:00]}  Qxd5 {[%clk 0:00:00]} 3. Nc3 {[%clk 0:00:00]}  Qa5 {[%clk 0:00:00]} 4. d4 {[%clk 0:00:00]}  Nf6 {[%clk 0:00:00]} 5. Nf3 {[%clk 0:00:00]}  Nc6 {[%clk 0:00:00]} 6. Bd2 {[%clk 0:00:00]}  a6 {[%clk 0:00:00]} 7. Bc4 {[%clk 0:00:00]}  Qh5 {[%clk 0:00:00]} 8. Qe2 {[%clk 0:00:00]}  Bg4 {[%clk 0:00:00]} 9. Be3 {[%clk 0:00:00]}  O-O-O {[%clk 0:00:00]} 10. O-O-O {[%clk 0:00:00]}  e6 {[%clk 0:00:00]} 11. h3 {[%clk 0:00:00]}  Bxf3 {[%clk 0:00:00]} 12. gxf3 {[%clk 0:00:00]}  Bb4 {[%clk 0:00:00]} 13. Bxa6 {[%clk 0:00:00]}  Bxc3 {[%clk 0:00:00]} 14. bxc3 {[%clk 0:00:00]}  bxa6 {[%clk 0:00:00]} 15. Qxa6+ {[%clk 0:00:00]}  Kd7 {[%clk 0:00:00]} 16. d5 {[%clk 0:00:00]}  exd5 {[%clk 0:00:00]} 17. c4 {[%clk 0:00:00]}  Ra8 {[%clk 0:00:00]} 18. Qb5 {[%clk 0:00:00]}  Rhb8 {[%clk 0:00:00]} 19. Qc5 {[%clk 0:00:00]}  Ra5 {[%clk 0:00:00]} 20. cxd5 {[%clk 0:00:00]}  Rxc5 {[%clk 0:00:00]} 21. dxc6+ {[%clk 0:00:00]}  Kxc6 {[%clk 0:00:00]} 22. Bxc5 {[%clk 0:00:00]}  Qxc5 {[%clk 0:00:00]} 0-1


[Site "https://www.chess.com"]

[Event "Titled Tuesday Blitz August 16 Late 2022"]
[White "Paravyan, David"]
[Black "Holt, Conrad"]
[WhiteFideId "4194985"]
[BlackFideId "2034387"]
[WhiteElo "2569"]
[BlackElo "2586"]
[Result "1-0"]
[Round "08"]
[TimeControl "180+1"]
[Date "2022.08.16"]
[WhiteClock "0:00:41"]
[BlackClock "0:00:19"]

1. e4 {[%clk 0:03:00]}  e6 {[%clk 0:03:00]} 2. d4 {[%clk 0:03:00]}  d5 {[%clk 0:03:00]} 3. Nc3 {[%clk 0:03:01]}  Nf6 {[%clk 0:02:58]} 4. Bg5 {[%clk 0:02:59]}  dxe4 {[%clk 0:02:58]} 5. Nxe4 {[%clk 0:02:59]}  Be7 {[%clk 0:02:58]} 6. Nxf6+ {[%clk 0:02:58]}  Bxf6 {[%clk 0:02:59]} 7. Bxf6 {[%clk 0:02:58]}  Qxf6 {[%clk 0:02:59]} 8. Nf3 {[%clk 0:02:58]}  c5 {[%clk 0:02:58]} 9. Bb5+ {[%clk 0:02:53]}  Bd7 {[%clk 0:02:58]} 10. Qe2 {[%clk 0:02:52]}  Nc6 {[%clk 0:02:54]} 11. O-O-O {[%clk 0:02:43]}  cxd4 {[%clk 0:02:45]} 12. Nxd4 {[%clk 0:02:31]}  Nxd4 {[%clk 0:02:17]} 13. Bxd7+ {[%clk 0:02:28]}  Kxd7 {[%clk 0:02:17]} 14. Rxd4+ {[%clk 0:02:27]}  Qxd4 {[%clk 0:02:10]} 15. Rd1 {[%clk 0:02:27]}  Qxd1+ {[%clk 0:02:10]} 16. Qxd1+ {[%clk 0:02:27]}  Kc7 {[%clk 0:02:03]} 17. Qg4 {[%clk 0:02:26]}  Raf8 {[%clk 0:01:57]} 18. Qxg7 {[%clk 0:02:25]}  Rhg8 {[%clk 0:01:58]} 19. Qe5+ {[%clk 0:02:25]}  Kc8 {[%clk 0:01:56]} 20. g3 {[%clk 0:02:25]}  Rd8 {[%clk 0:01:54]} 21. Qh5 {[%clk 0:02:23]}  Rg6 {[%clk 0:01:15]} 22. Qxh7 {[%clk 0:02:19]}  Rf6 {[%clk 0:01:12]} 23. f4 {[%clk 0:02:13]}  e5 {[%clk 0:01:12]} 24. Qg7 {[%clk 0:02:13]}  Rfd6 {[%clk 0:01:10]} 25. Qg4+ {[%clk 0:02:12]}  Kb8 {[%clk 0:01:00]} 26. fxe5 {[%clk 0:02:10]}  Rd5 {[%clk 0:00:53]} 27. b3 {[%clk 0:02:07]}  Re8 {[%clk 0:00:44]} 28. Qf4 {[%clk 0:02:07]}  Rdxe5 {[%clk 0:00:38]} 29. Qxf7 {[%clk 0:02:06]}  Re1+ {[%clk 0:00:38]} 30. Kb2 {[%clk 0:02:06]}  R1e2 {[%clk 0:00:38]} 31. h4 {[%clk 0:02:02]}  Rc8 {[%clk 0:00:35]} 32. Qf4+ {[%clk 0:02:02]}  Rc7 {[%clk 0:00:32]} 33. Qf5 {[%clk 0:01:56]}  b6 {[%clk 0:00:27]} 34. h5 {[%clk 0:01:54]}  Rc5 {[%clk 0:00:26]} 35. Qg6 {[%clk 0:01:46]}  Rh2 {[%clk 0:00:24]} 36. g4 {[%clk 0:01:45]}  Kb7 {[%clk 0:00:24]} 37. a4 {[%clk 0:01:34]}  a6 {[%clk 0:00:21]} 38. Qe4+ {[%clk 0:01:16]}  Rc6 {[%clk 0:00:20]} 39. b4 {[%clk 0:00:57]}  b5 {[%clk 0:00:20]} 40. a5 {[%clk 0:00:48]}  Rh4 {[%clk 0:00:19]} 41. Qg2 {[%clk 0:00:41]} 1-0


[Site "https://www.chess.com"]